fUST/lending_fUST_20240621
["ID","MTS","AMOUNT","RATE_DAILY","PERIOD"]
[329996250,1718908239481,-710.62,0.00054794,120]
[329996251,1718908239492,-164.95193492,0.00054794,120]
[329996252,1718908239501,-500.0,0.00054794,120]
[329996253,1718908239512,-500.0,0.00054794,120]
[329996254,1718908239522,-500.0,0.00054794,120]
[329996255,1718908239531,-500.0,0.00054794,120]
[329996256,1718908239540,-500.0,0.00054794,120]
[329996257,1718908239550,-500.0,0.00054794,120]
[329996258,1718908239559,-500.0,0.00054794,120]
[329996259,1718908239569,-500.0,0.00054794,120]
[329996260,1718908239579,-500.0,0.00054794,120]
[329996261,1718908239588,-506.30906023,0.00054794,120]
[329996262,1718908239598,-500.0,0.00054794,120]
[329996263,1718908239608,-200.0,0.00054794,7]
[329996264,1718908239619,-514.98274832,0.00054794,120]
[329996265,1718908239629,-500.0,0.00054794,120]
[329996266,1718908239640,-500.0,0.00054794,120]
[329996267,1718908239650,-500.0,0.00054794,120]
[329996268,1718908239660,-500.0,0.00054794,120]
[329996269,1718908239671,-500.0,0.00054794,120]
[329996270,1718908239682,-640.27,0.00054794,120]
[329996271,1718908239691,-500.0,0.00054794,120]
[329996272,1718908239701,-500.0,0.00054794,20]
[329996273,1718908239711,-500.0,0.00054794,120]
[329996274,1718908239721,-500.0,0.00054794,120]
[329996275,1718908239732,-500.0,0.00054794,120]
[329996276,1718908239742,-500.0,0.00054794,120]
[329996277,1718908239751,-500.0,0.00054794,120]
[329996278,1718908239761,-369.35207132,0.00054794,120]
[329996279,1718908239776,-130.64792868,0.00054794,120]
[329996280,1718908239786,-500.0,0.00054794,120]
[329996281,1718908239796,-533.55,0.00054794,2]
[329996282,1718908239806,-470.34647945,0.00054794,120]
[329996283,1718908239819,-29.65352055,0.00054794,120]
[329996284,1718908239829,-470.34647945,0.00054794,120]
[329996285,1718908239842,-29.65352055,0.00054794,120]
[329996286,1718908239852,-500.0,0.00054794,120]
[329996287,1718908239862,-500.0,0.00054794,2]
[329996288,1718908239872,-500.0,0.00054794,120]
[329996289,1718908239883,-500.0,0.00054794,120]
[329996290,1718908239893,-500.0,0.00054794,120]
[329996291,1718908239903,-587.18470162,0.00054794,120]
[329996292,1718908239914,-500.0,0.00054794,120]
[329996293,1718908239924,-500.0,0.00054794,120]
[329996294,1718908239934,-500.0,0.00054794,7]
[329996295,1718908239943,-2843.41,0.00054794,60]
[329996296,1718908239953,-513.51413735,0.00054794,120]
[329996297,1718908239963,-500.0,0.00054794,120]
[329996298,1718908239973,-505.37013858,0.00054794,2]
[329996299,1718908239984,-500.0,0.00054794,120]
[329996300,1718908239994,-611.96,0.00054794,120]
[329996301,1718908240003,-500.0,0.00054794,120]
[329996302,1718908240012,-500.0,0.00054794,120]
[329996303,1718908240022,-361.43764026,0.00054794,120]
[329996304,1718908240032,-500.0,0.00054794,120]
[329996305,1718908240042,-500.0,0.00054794,120]
[329996306,1718908240052,-500.0,0.00054794,2]
[329996307,1718908240062,-500.0,0.00054794,120]
[329996308,1718908240072,-500.0,0.00054794,120]
[329996309,1718908240081,-517.61957829,0.00054794,120]
[329996310,1718908240091,-500.0,0.00054794,120]
[329996311,1718908240100,-512.54055808,0.00054794,120]
[329996312,1718908240110,-500.0,0.00054794,120]
[329996313,1718908240121,-500.0,0.00054794,120]
[329996314,1718908240130,-500.0,0.00054794,120]
[329996315,1718908240141,-500.0,0.00054794,120]
[329996316,1718908240151,-500.0,0.00054794,120]
[329996317,1718908240162,-500.0,0.00054794,120]
[329996318,1718908240172,-500.0,0.00054794,120]
[329996319,1718908240182,-500.0,0.00054794,120]
[329996320,1718908240192,-500.0,0.00054794,120]
[329996321,1718908240202,-500.0,0.00054794,120]
[329996322,1718908240213,-500.0,0.00054794,120]
[329996323,1718908240222,-500.0,0.00054794,120]
[329996324,1718908240234,-500.0,0.00054794,120]
[329996325,1718908240243,-500.0,0.00054794,120]
[329996326,1718908240253,-500.0,0.00054794,120]
[329996327,1718908240263,-500.0,0.00054794,120]
[329996328,1718908240273,-500.0,0.00054794,120]
[329996329,1718908240283,-500.0,0.00054794,120]
[329996330,1718908240293,-500.0,0.00054794,120]
[329996331,1718908240304,-500.0,0.00054794,120]
[329996332,1718908240314,-500.0,0.00054794,120]
[329996333,1718908240328,-500.0,0.00054794,120]
[329996334,1718908240338,-500.0,0.00054794,120]
[329996335,1718908240348,-500.0,0.00054794,120]
[329996336,1718908240360,-500.0,0.00054794,30]
[329996337,1718908240370,-500.0,0.00054794,120]
[329996338,1718908240380,-500.0,0.00054794,120]
[329996339,1718908240391,-500.0,0.00054794,120]
[329996340,1718908240402,-321.27869611,0.00054794,120]
[329996341,1718908240412,-503.75592268,0.00054794,120]
[329996342,1718908240422,-510.16329444,0.00054794,120]
[329996343,1718908240432,-500.0,0.00054794,120]
[329996344,1718908240442,-500.0,0.00054794,120]
[329996345,1718908240452,-514.07467831,0.00054794,120]
[329996346,1718908240462,-500.0,0.00054794,120]
[329996347,1718908240472,-500.0,0.00054794,120]
[329996348,1718908240483,-500.0,0.00054794,120]
[329996349,1718908240493,-500.0,0.00054794,120]
[329996350,1718908240502,-500.0,0.00054794,120]
[329996351,1718908240512,-1000.0,0.00054794,120]
[329996352,1718908240522,-500.0,0.00054794,120]
[329996353,1718908240533,-500.0,0.00054794,120]
[329996354,1718908240543,-500.0,0.00054794,120]
[329996355,1718908240554,-500.0,0.00054794,120]
[329996356,1718908240564,-500.0,0.00054794,120]
[329996357,1718908240573,-500.0,0.00054794,120]
[329996358,1718908240583,-500.0,0.00054794,120]
[329996359,1718908240593,-656.39,0.00054794,120]
[329996360,1718908240603,-1932.03,0.00054794,120]
[329996361,1718908240613,-500.0,0.00054794,120]
[329996362,1718908240623,-500.0,0.00054794,120]
[329996363,1718908240633,-500.0,0.00054794,120]
[329996364,1718908240642,-500.0,0.00054794,120]
[329996365,1718908240652,-505.05415202,0.00054794,120]
[329996366,1718908240662,-500.0,0.00054794,120]
[329996367,1718908240671,-500.0,0.00054794,120]
[329996368,1718908240681,-500.0,0.00054794,120]
[329996369,1718908240691,-500.0,0.00054794,120]
[329996370,1718908240701,-500.0,0.00054794,120]
[329996371,1718908240711,-500.0,0.00054794,120]
[329996372,1718908240721,-500.0,0.00054794,120]
[329996373,1718908240732,-500.0,0.00054794,120]
[329996374,1718908240742,-500.0,0.00054794,120]
[329996375,1718908240751,-500.0,0.00054794,120]
[329996376,1718908240761,-500.0,0.00054794,120]
[329996377,1718908240771,-500.0,0.00054794,120]
[329996378,1718908240781,-500.0,0.00054794,120]
[329996379,1718908240790,-500.0,0.00054794,120]
[329996380,1718908240800,-500.0,0.00054794,120]
[329996381,1718908240809,-500.0,0.00054794,120]
[329996382,1718908240818,-500.0,0.00054794,120]
[329996383,1718908240828,-500.0,0.00054794,120]
[329996384,1718908240837,-500.0,0.00054794,120]
[329996385,1718908240847,-500.0,0.00054794,120]
[329996386,1718908240856,-523.93628753,0.00054794,120]
[329996387,1718908240866,-500.0,0.00054794,120]
[329996388,1718908240875,-447.41067231,0.00054794,120]
[329996389,1718908240884,-500.0,0.00054794,120]
[329996390,1718908240894,-506.82043498,0.00054794,120]
[329996391,1718908240903,-500.0,0.00054794,120]
[329996393,1718908240913,-500.0,0.00054794,120]
[329996395,1718908240922,-314.78871061,0.00054794,120]
[329996398,1718908240932,-500.0,0.00054794,120]
[329996399,1718908241030,-500.0,0.00054794,120]
[329996400,1718908241040,-317.78145695,0.00054794,120]
[329996401,1718908241049,-500.0,0.00054794,120]
[329996402,1718908241059,-500.0,0.00054794,120]
[329996403,1718908241068,-500.0,0.00054794,120]
[329996404,1718908241077,-500.0,0.00054794,2]
[329996405,1718908241087,-1621.33,0.00054794,120]
[329996406,1718908241097,-500.0,0.00054794,120]
[329996407,1718908241108,-272.81649475,0.00054794,120]
[329996408,1718908241117,-500.0,0.00054794,120]
[329996409,1718908241126,-346.41004582,0.00054794,120]
[329996410,1718908241135,-508.0,0.00054794,120]
[329996411,1718908241145,-500.0,0.00054794,120]
[329996412,1718908241154,-500.0,0.00054794,120]
[329996413,1718908241163,-500.0,0.00054794,120]
[329996414,1718908241173,-500.0,0.00054794,120]
[329996415,1718908241182,-500.0,0.00054794,120]
[329996416,1718908241192,-219.26218121,0.00054794,120]
[329996417,1718908241202,-500.0,0.00054794,120]
[329996418,1718908241211,-500.0,0.00054794,120]
[329996419,1718908241220,-500.0,0.00054794,120]
[329996420,1718908241231,-500.0,0.00054794,120]
[329996421,1718908241240,-500.0,0.00054794,120]
[329996422,1718908241249,-249.04097137,0.00054794,120]
[329996423,1718908241259,-404.51188124,0.00054794,120]
[329996424,1718908241268,-2551.71,0.00054794,120]
[329996425,1718908241277,-500.0,0.00054794,120]
[329996426,1718908241287,-500.0,0.00054794,120]
[329996427,1718908241296,-4215.0,0.00054794,120]
[329996428,1718908241309,-4215.0,0.00054794,120]
[329996429,1718908241320,-169.65955374,0.00054794,120]
[329996430,1718908241330,-4215.0,0.00054794,120]
[329996431,1718908241340,-4215.0,0.00054794,120]
[329996432,1718908241351,-4215.0,0.00054794,120]
[329996433,1718908241360,-4215.0,0.00054794,120]
[329996434,1718908241370,-502.9,0.00054794,120]
[329996435,1718908241379,-500.0,0.00054794,120]
[329996436,1718908241389,-500.0,0.00054794,120]
[329996437,1718908241409,-502.7960431,0.00054794,120]
[329996438,1718908241419,-1043.19,0.00054794,120]
[329996439,1718908241429,-500.0,0.00054794,120]
[329996440,1718908241439,-504.89638509,0.00054794,120]
[329996441,1718908241449,-530.63003724,0.00054794,120]
[329996442,1718908241459,-500.0,0.00054794,120]
[329996443,1718908241470,-500.0,0.00054794,120]
[329996444,1718908241481,-500.0,0.00054794,120]
[329996445,1718908241491,-500.0,0.00054794,120]
[329996446,1718908241501,-500.0,0.00054794,120]
[329996447,1718908241511,-500.0,0.00054794,7]
[329996448,1718908241524,-500.0,0.00054794,120]
[329996449,1718908241534,-500.0,0.00054794,120]
[329996450,1718908241544,-896.12,0.00054794,120]
[329996451,1718908241554,-500.0,0.00054794,120]
[329996452,1718908241563,-286.15250192,0.00054794,120]
[329996453,1718908241573,-411.6235829,0.00054794,120]
[329996454,1718908241583,-500.0,0.00054794,120]
[329996455,1718908241593,-501.2803781,0.00054794,120]
[329996456,1718908241603,-500.0,0.00054794,120]
[329996457,1718908241613,-513.43454026,0.00054794,120]
[329996458,1718908241623,-500.0,0.00054794,120]
[329996459,1718908241633,-160.82707183,0.00054794,120]
[329996460,1718908241643,-510.40620341,0.00054794,120]
[329996461,1718908241653,-6888.11,0.00054794,120]
[329996462,1718908241663,-1585.31,0.00054794,120]
[329996463,1718908241673,-500.0,0.00054794,120]
[329996464,1718908241682,-500.0,0.00054794,120]
[329996465,1718908241692,-587.38121168,0.00054794,120]
[329996466,1718908241702,-500.0,0.00054794,120]
[329996467,1718908241712,-500.0,0.00054794,120]
[329996468,1718908241722,-500.0,0.00054794,120]
[329996469,1718908241735,-500.0,0.00054794,120]
[329996470,1718908241744,-510.10398228,0.00054794,120]
[329996471,1718908241754,-500.0,0.00054794,120]
[329996472,1718908241763,-505.29196995,0.00054794,120]
[329996473,1718908241774,-551.02530116,0.00054794,120]
[329996474,1718908241784,-6419.45,0.00054794,120]
[329996475,1718908241794,-500.0,0.00054794,120]
[329996476,1718908241804,-500.0,0.00054794,120]
[329996477,1718908241814,-500.0,0.00054794,120]
[329996478,1718908241825,-500.0,0.00054794,120]
[329996479,1718908241835,-500.0,0.00054794,120]
[329996480,1718908241845,-500.0,0.00054794,120]
[329996481,1718908241855,-1347.64,0.00054794,120]
[329996482,1718908241865,-500.0,0.00054794,7]
[329996483,1718908241875,-500.0,0.00054794,120]
[329996484,1718908241886,-500.0,0.00054794,120]
[329996485,1718908241896,-500.0,0.00054794,120]
[329996486,1718908241906,-500.0,0.00054794,120]
[329996487,1718908241917,-196.09616635,0.00054794,120]
[329996488,1718908241927,-500.0,0.00054794,120]
[329996489,1718908241937,-500.0,0.00054794,120]
[329996490,1718908241947,-500.0,0.00054794,20]
[329996491,1718908241957,-500.0,0.00054794,120]
[329996492,1718908241967,-500.0,0.00054794,120]
[329996493,1718908241976,-500.0,0.00054794,120]
[329996494,1718908241987,-521.52226447,0.00054794,120]
[329996495,1718908241996,-4333.79,0.00054794,120]
[329996496,1718908242006,-500.0,0.00054794,120]
[329996497,1718908242015,-500.0,0.00054794,120]
[329996498,1718908242026,-518.24468426,0.00054794,120]
[329996499,1718908242035,-500.0,0.00054794,120]
[329996500,1718908242045,-500.0,0.00054794,120]
[329996501,1718908242055,-500.0,0.00054794,120]
[329996502,1718908242066,-504.49387885,0.00054794,120]
[329996503,1718908242076,-500.0,0.00054794,120]
[329996504,1718908242086,-500.0,0.00054794,120]
[329996505,1718908242095,-500.0,0.00054794,120]
[329996506,1718908242105,-500.0,0.00054794,120]
[329996507,1718908242115,-500.0,0.00054794,120]
[329996508,1718908242124,-500.0,0.00054794,120]
[329996509,1718908242134,-277.10452312,0.00054794,120]
[329996510,1718908242144,-500.0,0.00054794,120]
[329996511,1718908242153,-500.0,0.00054794,120]
[329996512,1718908242163,-500.0,0.00054794,120]
[329996513,1718908242173,-525.43255345,0.00054794,120]
[329996514,1718908242184,-500.0,0.00054794,120]
[329996515,1718908242193,-500.0,0.00054794,120]
[329996516,1718908242203,-500.0,0.00054794,120]
[329996517,1718908242213,-1000.0,0.00054794,120]
[329996518,1718908242223,-3077.09,0.00054794,120]
[329996519,1718908242234,-500.0,0.00054794,120]
[329996520,1718908242243,-500.0,0.00054794,120]
[329996521,1718908242253,-500.0,0.00054794,120]
[329996522,1718908242265,-514.62347062,0.00054794,120]
[329996523,1718908242275,-1358.92,0.00054794,120]
[329996524,1718908242285,-316.99697389,0.00054794,120]
[329996525,1718908242294,-500.0,0.00054794,120]
[329996526,1718908242303,-500.0,0.00054794,120]
[329996527,1718908242314,-500.0,0.00054794,120]
[329996528,1718908242325,-500.0,0.00054794,120]
[329996529,1718908242335,-500.0,0.00054794,120]
[329996530,1718908242344,-500.0,0.00054794,120]
[329996531,1718908242354,-500.0,0.00054794,120]
[329996532,1718908242363,-526.18954747,0.00054794,120]
[329996533,1718908242373,-500.0,0.00054794,120]
[329996534,1718908242382,-500.0,0.00054794,120]
[329996535,1718908242393,-500.0,0.00054794,120]
[329996536,1718908242403,-500.0,0.00054794,120]
[329996537,1718908242412,-505.3199697,0.00054794,120]
[329996538,1718908242422,-500.0,0.00054794,120]
[329996539,1718908242431,-500.0,0.00054794,120]
[329996540,1718908242440,-500.0,0.00054794,120]
[329996541,1718908242449,-500.0,0.00054794,120]
[329996542,1718908242458,-500.0,0.00054794,120]
[329996543,1718908242468,-500.0,0.00054794,120]
[329996544,1718908242478,-500.0,0.00054794,120]
[329996545,1718908242488,-670.19,0.00054794,120]
[329996546,1718908242498,-670.19,0.00054794,120]
[329996547,1718908242507,-670.19,0.00054794,120]
[329996548,1718908242516,-670.19,0.00054794,120]
[329996549,1718908242525,-503.31550006,0.00054794,120]
[329996550,1718908242535,-500.0,0.00054794,120]
[329996551,1718908242544,-500.0,0.00054794,120]
[329996552,1718908242554,-500.0,0.00054794,120]
[329996553,1718908242563,-500.0,0.00054794,120]
[329996554,1718908242572,-500.0,0.00054794,120]
[329996555,1718908242581,-504.32063269,0.00054794,120]
[329996556,1718908242591,-500.0,0.00054794,120]
[329996557,1718908242600,-500.0,0.00054794,120]
[329996558,1718908242610,-500.76740076,0.00054794,7]
[329996559,1718908242621,-500.0,0.00054794,120]
[329996560,1718908242630,-506.05277429,0.00054794,120]
[329996561,1718908242640,-500.0,0.00054794,120]
[329996562,1718908242649,-454.16313666,0.00054794,120]
[329996563,1718908242658,-500.0,0.00054794,120]
[329996564,1718908242668,-500.71395643,0.00054794,120]
[329996565,1718908242678,-506.40892919,0.00054794,120]
[329996566,1718908242687,-500.0,0.00054794,120]
[329996567,1718908242696,-500.0,0.00054794,120]
[329996568,1718908242705,-500.0,0.00054794,120]
[329996569,1718908242715,-3179.33,0.00054794,120]
[329996570,1718908242724,-501.68618541,0.00054794,120]
[329996571,1718908242735,-20138.58,0.00054794,120]
[329996572,1718908242745,-528.51,0.00054794,120]
[329996573,1718908242755,-500.0,0.00054794,120]
[329996574,1718908242764,-500.0,0.00054794,120]
[329996575,1718908242774,-500.0,0.00054794,120]
[329996576,1718908242783,-500.0,0.00054794,120]
[329996577,1718908242792,-500.0,0.00054794,120]
[329996578,1718908242802,-500.0,0.00054794,120]
[329996579,1718908242811,-500.0,0.00054794,120]
[329996580,1718908242821,-500.0,0.00054794,120]
[329996581,1718908242830,-1804.7,0.00054794,21]
[329996582,1718908242839,-2730.03,0.00054794,120]
[329996583,1718908242848,-500.0,0.00054794,120]
[329996584,1718908242858,-1556.9,0.00054794,120]
[329996585,1718908242868,-500.0,0.00054794,120]
[329996586,1718908242877,-583.71942751,0.00054794,120]
[329996587,1718908242887,-832.61,0.00054794,120]
[329996588,1718908242896,-3428.45,0.00054794,120]
[329996589,1718908242906,-256.58369329,0.00054794,120]
[329996590,1718908242915,-500.0,0.00054794,60]
[329996591,1718908242925,-500.0,0.00054794,120]
[329996592,1718908242934,-500.0,0.00054794,120]
[329996593,1718908242944,-500.0,0.00054794,120]
[329996594,1718908242953,-500.0,0.00054794,120]
[329996595,1718908242962,-500.0,0.00054794,120]
[329996596,1718908242972,-500.0,0.00054794,120]
[329996597,1718908242983,-506.39325656,0.00054794,120]
[329996598,1718908242992,-500.0,0.00054794,120]
[329996599,1718908243001,-515.85292035,0.00054794,120]
[329996600,1718908243012,-500.0,0.00054794,120]
[329996601,1718908243021,-500.0,0.00054794,120]
[329996602,1718908243031,-500.0,0.00054794,120]
[329996603,1718908243040,-500.89607066,0.00054794,120]
[329996604,1718908243050,-598.87051778,0.00054794,120]
[329996605,1718908243059,-500.0,0.00054794,120]
[329996606,1718908243068,-500.0,0.00054794,90]
[329996607,1718908243078,-591.5,0.00054794,120]
[329996608,1718908243181,-523.61739141,0.00054794,120]
[329996609,1718908243191,-340.54528223,0.00054794,120]
[329996610,1718908243200,-500.0,0.00054794,120]
[329996611,1718908243210,-500.0,0.00054794,120]
[329996612,1718908243219,-250.0,0.00054794,120]
[329996613,1718908243228,-500.0,0.00054794,120]
[329996614,1718908243238,-682.14,0.00054794,120]
[329996615,1718908243248,-500.0,0.00054794,120]
[329996616,1718908243258,-500.0,0.00054794,120]
[329996617,1718908243268,-500.0,0.00054794,120]
[329996618,1718908243278,-508.37814768,0.00054794,120]
[329996619,1718908243288,-500.0,0.00054794,120]
[329996620,1718908243298,-500.0,0.00054794,120]
[329996621,1718908243312,-516.89371815,0.00054794,120]
[329996622,1718908243322,-500.0,0.00054794,120]
[329996623,1718908243332,-500.0,0.00054794,120]
[329996624,1718908243341,-500.0,0.00054794,120]
[329996625,1718908243352,-603.71067152,0.00054794,120]
[329996626,1718908243362,-500.0,0.00054794,120]
[329996627,1718908243372,-500.0,0.00054794,120]
[329996628,1718908243382,-500.0,0.00054794,120]
[329996629,1718908243392,-500.0,0.00054794,120]
[329996630,1718908243401,-500.0,0.00054794,120]
[329996631,1718908243410,-503.07032068,0.00054794,120]
[329996632,1718908243420,-3072.74,0.00054794,120]
[329996633,1718908243430,-500.0,0.00054794,120]
[329996634,1718908243439,-501.15039361,0.00054794,120]
[329996635,1718908243449,-500.0,0.00054794,120]
[329996636,1718908243458,-500.0,0.00054794,120]
[329996637,1718908243467,-1897.6,0.00054794,120]
[329996638,1718908243476,-500.0,0.00054794,120]
[329996639,1718908243488,-505.59710494,0.00054794,120]
[329996640,1718908243497,-500.0,0.00054794,120]
[329996641,1718908243506,-502.35212257,0.00054794,120]
[329996642,1718908243515,-500.5818254,0.00054794,120]
[329996643,1718908243525,-611.83,0.00054794,120]
[329996644,1718908243534,-5375.69,0.00054794,120]
[329996645,1718908243543,-500.0,0.00054794,120]
[329996647,1718908243552,-500.0,0.00054794,120]
[329996649,1718908243562,-500.0,0.00054794,120]
[329996650,1718908243571,-500.0,0.00054794,120]
[329996653,1718908243580,-501.87106535,0.00054794,120]
[329996655,1718908243590,-505.57192816,0.00054794,120]
[329996659,1718908243599,-500.0,0.00054794,120]
[329996661,1718908243609,-500.0,0.00054794,120]
[329996663,1718908243617,-525.29369667,0.00054794,120]
[329996665,1718908243626,-500.0,0.00054794,120]
[329996668,1718908243635,-503.09269873,0.00054794,120]
[329996670,1718908243644,-500.0,0.00054794,120]
[329996672,1718908243654,-2709.41,0.00054794,120]
[329996673,1718908243663,-239.0386631,0.00054794,120]
[329996674,1718908243672,-500.0,0.00054794,120]
[329996675,1718908243682,-500.0,0.00054794,120]
[329996676,1718908243692,-225.54608819,0.00054794,120]
[329996677,1718908243702,-500.0,0.00054794,120]
[329996678,1718908243711,-502.5047684,0.00054794,120]
[329996679,1718908243720,-223.23841115,0.00054794,120]
[329996680,1718908243731,-500.0,0.00054794,120]
[329996681,1718908243741,-554.15521655,0.00054794,120]
[329996682,1718908243750,-500.0,0.00054794,120]
[329996683,1718908243759,-500.0,0.00054794,120]
[329996684,1718908243769,-500.0,0.00054794,120]
[329996685,1718908243778,-500.0,0.00054794,120]
[329996686,1718908243788,-500.0,0.00054794,120]
[329996687,1718908243797,-500.0,0.00054794,30]
[329996688,1718908243807,-500.0,0.00054794,120]
[329996689,1718908243817,-504.86432741,0.00054794,120]
[329996690,1718908243826,-500.0,0.00054794,120]
[329996691,1718908243835,-521.6391718,0.00054794,120]
[329996692,1718908243845,-3510.27834066,0.00054968,5]
[329996693,1718908243855,-1122.19,0.00055,120]
[329996694,1718908243864,-1000.0,0.00055,120]
[329996695,1718908243873,-4215.0,0.00055067,120]
[329996696,1718908243882,-4215.0,0.00055067,120]
[329996697,1718908243891,-4215.0,0.00055067,120]
[329996698,1718908243901,-500.0,0.00055067,120]
[329996699,1718908243910,-500.0,0.00055067,120]
[329996700,1718908243920,-236.43783929,0.00055067,120]
[329996701,1718908243929,-500.0,0.00055067,120]
[329996702,1718908243939,-500.0,0.00055067,120]
[329996704,1718908243948,-500.0,0.00055067,120]
[329996706,1718908243957,-670.19,0.00055067,120]
[329996707,1718908243967,-670.19,0.00055067,120]
[329996709,1718908243978,-670.19,0.00055067,120]
[329996711,1718908243988,-500.0,0.00055068,120]
[329996712,1718908243998,-500.0,0.00055068,120]
[329996713,1718908244007,-504.16464724,0.00055068,120]
[329996714,1718908244016,-710.62,0.00055068,120]
[329996715,1718908244025,-500.0,0.00055068,120]
[329996716,1718908244034,-500.0,0.00055068,120]
[329996717,1718908244043,-500.0,0.00055068,120]
[329996718,1718908244053,-505.61067137,0.00055068,120]
[329996719,1718908244063,-500.0,0.00055068,120]
[329996720,1718908244072,-500.0,0.00055068,120]
[329996721,1718908244081,-500.0,0.00055068,120]
[329996722,1718908244090,-500.0,0.00055068,120]
[329996723,1718908244100,-200.0,0.00055068,7]
[329996724,1718908244110,-226.81604467,0.00055068,120]
[329996725,1718908244119,-500.0,0.00055068,120]
[329996726,1718908244129,-315.81683125,0.00055068,120]
[329996727,1718908244138,-521.5251621,0.00055068,120]
[329996728,1718908244147,-500.0,0.00055068,120]
[329996729,1718908244156,-640.27,0.00055068,120]
[329996730,1718908244166,-500.0,0.00055068,120]
[329996731,1718908244175,-507.39892745,0.00055068,20]
[329996732,1718908244185,-500.0,0.00055068,120]
[329996733,1718908244194,-500.0,0.00055068,120]
[329996734,1718908244203,-490.67307295,0.00055068,120]
[329996735,1718908244213,-506.25291399,0.00055068,120]
[329996736,1718908244222,-500.0,0.00055068,120]
[329996737,1718908244231,-533.55,0.00055068,2]
[329996738,1718908244240,-500.0,0.00055068,120]
[329996739,1718908244249,-500.0,0.00055068,120]
[329996740,1718908244259,-500.0,0.00055068,120]
[329996741,1718908244269,-500.0,0.00055068,120]
[329996742,1718908244278,-449.81189184,0.00055068,120]
[329996743,1718908244287,-500.0,0.00055068,7]
[329996744,1718908244296,-2843.41,0.00055068,60]
[329996745,1718908244308,-500.0,0.00055068,120]
[329996746,1718908244319,-611.96,0.00055068,120]
[329996747,1718908244328,-500.0,0.00055068,120]
[329996748,1718908244338,-535.67885654,0.00055068,120]
[329996749,1718908244347,-500.0,0.00055068,120]
[329996750,1718908244357,-500.0,0.00055068,120]
[329996751,1718908244366,-500.0,0.00055068,2]
[329996752,1718908244375,-500.0,0.00055068,120]
[329996753,1718908244384,-500.0,0.00055068,120]
[329996754,1718908244395,-500.0,0.00055068,120]
[329996755,1718908244405,-500.0,0.00055068,120]
[329996756,1718908244415,-500.0,0.00055068,120]
[329996757,1718908244425,-500.0,0.00055068,120]
[329996758,1718908244435,-500.0,0.00055068,120]
[329996759,1718908244446,-490.50475209,0.00055068,120]
[329996760,1718908244455,-500.0,0.00055068,120]
[329996761,1718908244464,-500.0,0.00055068,120]
[329996762,1718908244473,-500.0,0.00055068,120]
[329996763,1718908244484,-500.0,0.00055068,120]
[329996764,1718908244494,-500.0,0.00055068,120]
[329996765,1718908244503,-500.0,0.00055068,120]
[329996766,1718908244516,-500.0,0.00055068,120]
[329996767,1718908244525,-500.0,0.00055068,120]
[329996768,1718908244535,-192.32226048,0.00055068,120]
[329996769,1718908244544,-500.0,0.00055068,120]
[329996770,1718908244554,-500.0,0.00055068,120]
[329996771,1718908244564,-500.0,0.00055068,120]
[329996772,1718908244573,-500.0,0.00055068,120]